[Event "*** Titled Tuesday Blitz"]
[Site "Chess.com"]
[Date "2019.09.03"]
[Round "1"]
[White "gemarin"]
[Black "bugsbunny444"]
[Result "0-1"]
[WhiteElo "2080"]
[BlackElo "2552"]
[TimeControl "180+2"]
[EndTime "15:03:08 PDT"]
[Termination "bugsbunny444 won by resignation"]

1. d4 {[%clk 0:03:00]} 1... e6 {[%clk 0:03:00.9]} 2. c4 {[%clk 0:03:00.2]} 2...
b6 {[%clk 0:03:02.3]} 3. Nf3 {[%clk 0:03:00]} 3... Bb7 {[%clk 0:03:03.6]} 4. a3
{[%clk 0:03:01.4]} 4... f5 {[%clk 0:03:04.4]} 5. Nc3 {[%clk 0:02:59.9]} 5... Nf6
{[%clk 0:03:05.7]} 6. g3 {[%clk 0:02:58.4]} 6... Ne4 {[%clk 0:03:06.8]} 7. Qc2
{[%clk 0:02:57.4]} 7... Be7 {[%clk 0:03:06]} 8. Bg2 {[%clk 0:02:58.4]} 8... Nxc3
{[%clk 0:03:06.7]} 9. Qxc3 {[%clk 0:02:58.8]} 9... Bf6 {[%clk 0:03:08.4]} 10.
O-O {[%clk 0:02:57.3]} 10... O-O {[%clk 0:03:09.6]} 11. Rd1 {[%clk 0:02:57.2]}
11... Be4 {[%clk 0:03:09.8]} 12. Ne5 {[%clk 0:02:51.4]} 12... Bxg2 {[%clk
0:03:03]} 13. Kxg2 {[%clk 0:02:52.3]} 13... d6 {[%clk 0:02:50.2]} 14. Nf3 {[%clk
0:02:52.3]} 14... c5 {[%clk 0:02:39.5]} 15. Qc2 {[%clk 0:02:50]} 15... Nc6
{[%clk 0:02:16.8]} 16. d5 {[%clk 0:02:48]} 16... exd5 {[%clk 0:02:17.4]} 17.
cxd5 {[%clk 0:02:48.1]} 17... Nd4 {[%clk 0:01:55.1]} 18. Ne1 {[%clk 0:02:34.6]}
18... Nxc2 {[%clk 0:01:54.1]} 19. Nxc2 {[%clk 0:02:31.6]} 19... Qe7 {[%clk
0:01:53.4]} 0-1

[Event "*** Titled Tuesday Blitz"]
[Site "Chess.com"]
[Date "2019.09.03"]
[Round "1"]
[White "Blackmind96"]
[Black "TreabharMakernes"]
[Result "1-0"]
[WhiteElo "2712"]
[BlackElo "2359"]
[TimeControl "180+2"]
[EndTime "15:03:16 PDT"]
[Termination "Blackmind96 won by resignation"]

1. d4 {[%clk 0:03:01.9]} 1... Nf6 {[%clk 0:03:00.5]} 2. c4 {[%clk 0:03:02.7]}
2... e6 {[%clk 0:03:01.5]} 3. Nc3 {[%clk 0:03:03.2]} 3... Bb4 {[%clk 0:03:02.5]}
4. e3 {[%clk 0:03:04.3]} 4... O-O {[%clk 0:03:03.5]} 5. Ne2 {[%clk 0:03:04.9]}
5... d5 {[%clk 0:03:04.3]} 6. a3 {[%clk 0:03:05.8]} 6... Be7 {[%clk 0:03:05.3]}
7. cxd5 {[%clk 0:03:02.1]} 7... exd5 {[%clk 0:03:05.6]} 8. Nf4 {[%clk
0:03:03.6]} 8... c6 {[%clk 0:03:06.7]} 9. Bd3 {[%clk 0:03:03.8]} 9... Bd6 {[%clk
0:03:05.3]} 10. O-O {[%clk 0:03:04.5]} 10... Re8 {[%clk 0:03:04.2]} 11. f3
{[%clk 0:03:04.4]} 11... Bxf4 {[%clk 0:02:59.4]} 12. exf4 {[%clk 0:03:04.9]}
12... Nbd7 {[%clk 0:02:48]} 13. f5 {[%clk 0:03:04.1]} 13... h6 {[%clk
0:02:46.3]} 14. Kh1 {[%clk 0:03:03.5]} 14... c5 {[%clk 0:02:39.5]} 15. Bc2
{[%clk 0:02:59.6]} 15... cxd4 {[%clk 0:02:24]} 16. Qxd4 {[%clk 0:03:00.1]} 16...
Qb6 {[%clk 0:02:24.1]} 17. Qh4 {[%clk 0:02:47.1]} 17... d4 {[%clk 0:02:19.5]}
18. Ne4 {[%clk 0:02:41.8]} 18... Qb5 {[%clk 0:02:05.3]} 19. Nxf6+ {[%clk
0:02:31.9]} 19... Nxf6 {[%clk 0:02:04.9]} 20. Bxh6 {[%clk 0:02:33.2]} 20... Bxf5
{[%clk 0:02:00.6]} 21. Qg5 {[%clk 0:02:32.4]} 21... g6 {[%clk 0:01:55.8]} 22.
Qxf6 {[%clk 0:02:31.2]} 1-0

[Event "*** Titled Tuesday Blitz"]
[Site "Chess.com"]
[Date "2019.09.03"]
[Round "1"]
[White "chessking2151"]
[Black "FranciscodelaF"]
[Result "1-0"]
[WhiteElo "2627"]
[BlackElo "2264"]
[TimeControl "180+2"]
[EndTime "15:03:36 PDT"]
[Termination "chessking2151 won by resignation"]

1. e4 {[%clk 0:02:50.5]} 1... e6 {[%clk 0:03:00.5]} 2. d4 {[%clk 0:02:50.8]}
2... d5 {[%clk 0:03:01.8]} 3. Nc3 {[%clk 0:02:50.2]} 3... Nf6 {[%clk 0:02:58.3]}
4. e5 {[%clk 0:02:50.7]} 4... Nfd7 {[%clk 0:02:59.1]} 5. f4 {[%clk 0:02:48.1]}
5... c5 {[%clk 0:03:00.5]} 6. Nf3 {[%clk 0:02:47.3]} 6... Nc6 {[%clk 0:03:01.8]}
7. Ne2 {[%clk 0:02:48.2]} 7... cxd4 {[%clk 0:03:00.9]} 8. Nexd4 {[%clk
0:02:49.1]} 8... Bc5 {[%clk 0:03:01.8]} 9. c3 {[%clk 0:02:47.9]} 9... a6 {[%clk
0:03:01.9]} 10. Be3 {[%clk 0:02:47.3]} 10... O-O {[%clk 0:03:01.2]} 11. Bd3
{[%clk 0:02:44]} 11... Nxd4 {[%clk 0:03:00.3]} 12. cxd4 {[%clk 0:02:42.3]} 12...
Bb4+ {[%clk 0:03:00.5]} 13. Kf2 {[%clk 0:02:39]} 13... f6 {[%clk 0:03:01.4]} 14.
h4 {[%clk 0:02:33.2]} 14... f5 {[%clk 0:02:57.8]} 15. g4 {[%clk 0:02:21.4]}
15... Nb6 {[%clk 0:02:53.8]} 16. gxf5 {[%clk 0:02:20.9]} 16... exf5 {[%clk
0:02:54.6]} 17. Rc1 {[%clk 0:02:20.7]} 17... Bd7 {[%clk 0:02:54.6]} 18. Qb3
{[%clk 0:02:16.8]} 18... a5 {[%clk 0:02:51.4]} 19. a3 {[%clk 0:02:16.4]} 19...
Ba4 {[%clk 0:02:51.2]} 20. Qa2 {[%clk 0:02:17]} 20... Be7 {[%clk 0:02:51.9]} 21.
h5 {[%clk 0:02:12.3]} 21... h6 {[%clk 0:02:51.9]} 22. Qb1 {[%clk 0:02:10.5]}
22... Qd7 {[%clk 0:02:51.7]} 23. Rcg1 {[%clk 0:02:11.5]} 23... Nc4 {[%clk
0:02:52]} 24. Rg6 {[%clk 0:02:11.8]} 24... Nxe3 {[%clk 0:02:52.9]} 25. Kxe3
{[%clk 0:02:12.4]} 25... Bb3 {[%clk 0:02:47]} 26. Rhg1 {[%clk 0:02:12.7]} 26...
Kh8 {[%clk 0:02:40.7]} 27. Rxg7 {[%clk 0:02:12.7]} 27... Rg8 {[%clk 0:02:42.2]}
28. Rh7+ {[%clk 0:02:05.4]} 28... Kxh7 {[%clk 0:02:42.1]} 29. Bxf5+ {[%clk
0:02:06]} 29... Kh8 {[%clk 0:02:39.5]} 30. Bxd7 {[%clk 0:02:06.9]} 1-0

[Event "*** Titled Tuesday Blitz"]
[Site "Chess.com"]
[Date "2019.09.03"]
[Round "1"]
[White "Iyael"]
[Black "Kildepiotr"]
[Result "1-0"]
[WhiteElo "2044"]
[BlackElo "2485"]
[TimeControl "180+2"]
[EndTime "15:04:09 PDT"]
[Termination "Iyael won by resignation"]

1. e4 {[%clk 0:02:59.1]} 1... g6 {[%clk 0:03:00.1]} 2. d4 {[%clk 0:02:58.9]}
2... Bg7 {[%clk 0:03:01.5]} 3. Bc4 {[%clk 0:02:59.3]} 3... c6 {[%clk 0:03:03]}
4. Nc3 {[%clk 0:02:57.2]} 4... b5 {[%clk 0:03:03.1]} 5. Bd3 {[%clk 0:02:56.7]}
5... Bxd4 {[%clk 0:03:01.5]} 6. Nge2 {[%clk 0:02:57.4]} 6... Bg7 {[%clk
0:03:01.5]} 7. O-O {[%clk 0:02:58.4]} 7... d6 {[%clk 0:03:01.9]} 8. f4 {[%clk
0:02:58.7]} 8... b4 {[%clk 0:03:02.8]} 9. Na4 {[%clk 0:02:54.6]} 9... Nf6 {[%clk
0:03:02.8]} 10. Rb1 {[%clk 0:02:52.8]} 10... O-O {[%clk 0:03:03.1]} 11. b3
{[%clk 0:02:53.2]} 11... Ba6 {[%clk 0:03:02.8]} 12. f5 {[%clk 0:02:52.5]} 12...
Bxd3 {[%clk 0:03:02.4]} 13. Qxd3 {[%clk 0:02:53.5]} 13... Nbd7 {[%clk
0:03:02.9]} 14. Bf4 {[%clk 0:02:49.3]} 14... Nh5 {[%clk 0:03:01.1]} 15. Bg5
{[%clk 0:02:49.4]} 15... Ne5 {[%clk 0:03:01.5]} 16. Qe3 {[%clk 0:02:49.3]} 16...
Nf6 {[%clk 0:03:01.8]} 17. Nb2 {[%clk 0:02:47.2]} 17... a5 {[%clk 0:03:02.2]}
18. Nd3 {[%clk 0:02:47.8]} 18... Nfd7 {[%clk 0:03:01.2]} 19. h4 {[%clk 0:02:45]}
19... h5 {[%clk 0:03:01]} 20. fxg6 {[%clk 0:02:41]} 20... fxg6 {[%clk
0:03:01.6]} 21. Nef4 {[%clk 0:02:41.8]} 21... Qb6 {[%clk 0:02:55.1]} 22. Qxb6
{[%clk 0:02:38.2]} 22... Nxb6 {[%clk 0:02:55.8]} 23. Bxe7 {[%clk 0:02:38.7]}
23... Nxd3 {[%clk 0:02:44.6]} 24. cxd3 {[%clk 0:02:38.3]} 24... Rf7 {[%clk
0:02:22.2]} 25. Bxd6 {[%clk 0:02:37.7]} 25... Bd4+ {[%clk 0:02:18.9]} 26. Kh1
{[%clk 0:02:35.4]} 26... Rd8 {[%clk 0:02:17.6]} 27. e5 {[%clk 0:02:32.4]} 27...
Kh7 {[%clk 0:02:00]} 28. Ne6 {[%clk 0:02:32.7]} 28... Rxf1+ {[%clk 0:02:00.4]}
29. Rxf1 {[%clk 0:02:32.6]} 29... Rxd6 {[%clk 0:01:54.1]} 30. exd6 {[%clk
0:02:31.1]} 30... Be5 {[%clk 0:01:55.3]} 31. Rf7+ {[%clk 0:02:27.2]} 31... Kg8
{[%clk 0:01:55.9]} 32. d7 {[%clk 0:02:28.1]} 1-0

[Event "*** Titled Tuesday Blitz"]
[Site "Chess.com"]
[Date "2019.09.03"]
[Round "1"]
[White "RU_B9"]
[Black "Benjoneliere44"]
[Result "0-1"]
[WhiteElo "1710"]
[BlackElo "2515"]
[TimeControl "180+2"]
[EndTime "15:05:12 PDT"]
[Termination "Benjoneliere44 won by resignation"]

1. c4 {[%clk 0:03:01.9]} 1... Nf6 {[%clk 0:03:00]} 2. Nf3 {[%clk 0:03:02.2]}
2... g6 {[%clk 0:02:57.3]} 3. Nc3 {[%clk 0:03:03.1]} 3... Bg7 {[%clk 0:02:53.2]}
4. e4 {[%clk 0:03:04.3]} 4... d6 {[%clk 0:02:54.1]} 5. d4 {[%clk 0:03:05.7]}
5... O-O {[%clk 0:02:54.6]} 6. Be2 {[%clk 0:03:07]} 6... e5 {[%clk 0:02:53]} 7.
O-O {[%clk 0:03:07.7]} 7... Nc6 {[%clk 0:02:54.2]} 8. d5 {[%clk 0:03:06.1]} 8...
Ne7 {[%clk 0:02:54.9]} 9. Ne1 {[%clk 0:03:06.9]} 9... Nd7 {[%clk 0:02:48.7]} 10.
Be3 {[%clk 0:03:08.4]} 10... f5 {[%clk 0:02:49.1]} 11. f3 {[%clk 0:03:10.1]}
11... f4 {[%clk 0:02:48.6]} 12. Bf2 {[%clk 0:03:11.7]} 12... g5 {[%clk
0:02:49.5]} 13. Rc1 {[%clk 0:03:13.2]} 13... Rf6 {[%clk 0:02:41.6]} 14. c5
{[%clk 0:03:01.2]} 14... a6 {[%clk 0:02:32.3]} 15. c6 {[%clk 0:02:58.7]} 15...
bxc6 {[%clk 0:02:24.3]} 16. dxc6 {[%clk 0:03:00.6]} 16... Nf8 {[%clk 0:02:22.9]}
17. Nd5 {[%clk 0:02:28.8]} 17... Nxd5 {[%clk 0:02:20.8]} 18. Bc4 {[%clk
0:02:23.8]} 18... Kh8 {[%clk 0:02:20.7]} 19. Bxd5 {[%clk 0:02:09.2]} 19... Rh6
{[%clk 0:02:14.4]} 20. Nd3 {[%clk 0:02:09.2]} 20... Qe8 {[%clk 0:02:14.5]} 21.
Rc3 {[%clk 0:01:49.8]} 21... Qh5 {[%clk 0:02:11.5]} 22. h4 {[%clk 0:01:50.5]}
22... gxh4 {[%clk 0:02:09.2]} 23. Rb3 {[%clk 0:01:31.7]} 23... Qg5 {[%clk
0:01:57.3]} 24. Kh1 {[%clk 0:01:25.6]} 24... h3 {[%clk 0:01:49.3]} 25. g4 {[%clk
0:01:01.5]} 25... fxg3 {[%clk 0:01:47.8]} 0-1

[Event "*** Titled Tuesday Blitz"]
[Site "Chess.com"]
[Date "2019.09.03"]
[Round "1"]
[White "2165149677570"]
[Black "kleinebeer98"]
[Result "0-1"]
[WhiteElo "2304"]
[BlackElo "2667"]
[TimeControl "180+2"]
[EndTime "15:05:58 PDT"]
[Termination "kleinebeer98 won by resignation"]

1. e4 {[%clk 0:03:01.9]} 1... e5 {[%clk 0:02:58.4]} 2. Nf3 {[%clk 0:03:02.8]}
2... Nc6 {[%clk 0:02:58.3]} 3. Bb5 {[%clk 0:03:03.7]} 3... f5 {[%clk 0:02:59.6]}
4. d3 {[%clk 0:03:04.4]} 4... fxe4 {[%clk 0:03:00.7]} 5. dxe4 {[%clk 0:03:06.3]}
5... Nf6 {[%clk 0:03:02]} 6. O-O {[%clk 0:03:06.3]} 6... d6 {[%clk 0:03:03.3]}
7. Re1 {[%clk 0:03:07.6]} 7... Be7 {[%clk 0:03:02.7]} 8. Nc3 {[%clk 0:03:07.1]}
8... O-O {[%clk 0:03:01.3]} 9. a4 {[%clk 0:03:02]} 9... Kh8 {[%clk 0:03:01]} 10.
Bc4 {[%clk 0:03:00.9]} 10... Bg4 {[%clk 0:02:59.8]} 11. h3 {[%clk 0:03:02]}
11... Bh5 {[%clk 0:02:59.1]} 12. Be2 {[%clk 0:02:52.8]} 12... Qe8 {[%clk
0:02:55.7]} 13. Ng5 {[%clk 0:02:51.4]} 13... Bxe2 {[%clk 0:02:51.9]} 14. Nxe2
{[%clk 0:02:44.5]} 14... Nd8 {[%clk 0:02:29]} 15. Ng3 {[%clk 0:02:39.6]} 15...
h6 {[%clk 0:02:28.4]} 16. Nf3 {[%clk 0:02:37.1]} 16... Ne6 {[%clk 0:02:29.3]}
17. Nf5 {[%clk 0:02:38.1]} 17... Rd8 {[%clk 0:02:23.9]} 18. c4 {[%clk
0:02:36.6]} 18... Rd7 {[%clk 0:02:18.3]} 19. N3h4 {[%clk 0:02:12.7]} 19... Bd8
{[%clk 0:02:14.6]} 20. Qf3 {[%clk 0:02:08.4]} 20... Kh7 {[%clk 0:02:11.9]} 21.
Qg3 {[%clk 0:01:38.7]} 21... g5 {[%clk 0:02:04.3]} 22. Nf3 {[%clk 0:01:31.9]}
22... Nxe4 {[%clk 0:02:05.3]} 23. Rxe4 {[%clk 0:01:26.5]} 23... Rxf5 {[%clk
0:02:06.3]} 24. Qg4 {[%clk 0:01:16]} 24... Qg6 {[%clk 0:02:04.6]} 25. h4 {[%clk
0:01:12.4]} 25... h5 {[%clk 0:02:05.3]} 26. Qg3 {[%clk 0:01:05.5]} 26... g4
{[%clk 0:02:04.8]} 27. Nh2 {[%clk 0:00:54.8]} 27... Rdf7 {[%clk 0:02:00.5]} 28.
Be3 {[%clk 0:00:29.9]} 28... R5f6 {[%clk 0:01:57.5]} 0-1

[Event "*** Titled Tuesday Blitz"]
[Site "Chess.com"]
[Date "2019.09.03"]
[Round "1"]
[White "patrisiii123"]
[Black "Alexander_Donchenko"]
[Result "0-1"]
[WhiteElo "2312"]
[BlackElo "2673"]
[TimeControl "180+2"]
[EndTime "15:06:04 PDT"]
[Termination "Alexander_Donchenko won by resignation"]

1. e4 {[%clk 0:02:58.7]} 1... g6 {[%clk 0:02:58.7]} 2. d4 {[%clk 0:02:59.6]}
2... Bg7 {[%clk 0:02:58.8]} 3. Nc3 {[%clk 0:03:01.1]} 3... d6 {[%clk 0:02:59.4]}
4. f4 {[%clk 0:02:57.1]} 4... Nf6 {[%clk 0:03:00.1]} 5. Nf3 {[%clk 0:02:57.5]}
5... c5 {[%clk 0:03:00.9]} 6. dxc5 {[%clk 0:02:56.4]} 6... Qa5 {[%clk
0:03:01.3]} 7. cxd6 {[%clk 0:02:22.8]} 7... Nxe4 {[%clk 0:03:01.6]} 8. dxe7
{[%clk 0:02:15.5]} 8... Bxc3+ {[%clk 0:02:48.8]} 9. bxc3 {[%clk 0:02:11.1]} 9...
Qxc3+ {[%clk 0:02:50.7]} 10. Bd2 {[%clk 0:02:10.8]} 10... Nxd2 {[%clk
0:02:36.9]} 11. Nxd2 {[%clk 0:01:53]} 11... Nc6 {[%clk 0:02:13.9]} 12. Bb5
{[%clk 0:01:20.6]} 12... Bg4 {[%clk 0:02:11.3]} 13. Bxc6+ {[%clk 0:00:50.6]}
13... bxc6 {[%clk 0:02:10.2]} 14. Qxg4 {[%clk 0:00:20.4]} 14... Qxa1+ {[%clk
0:02:10.6]} 15. Kf2 {[%clk 0:00:20.6]} 15... Qxh1 {[%clk 0:01:57.4]} 16. Qe2
{[%clk 0:00:15.9]} 16... Qa1 {[%clk 0:01:53.1]} 17. Qe4 {[%clk 0:00:03.8]} 17...
Qc3 {[%clk 0:01:48.3]} 18. Nc4 {[%clk 0:00:04.8]} 18... Qf6 {[%clk 0:01:40.4]}
19. g3 {[%clk 0:00:02.5]} 19... Rc8 {[%clk 0:01:37.9]} 20. Nd6+ {[%clk 0:00:02]}
20... Qxd6 {[%clk 0:01:38.3]} 21. Qe6 {[%clk 0:00:03.5]} 21... Qd4+ {[%clk
0:01:35.6]} 0-1

[Event "*** Titled Tuesday Blitz"]
[Site "Chess.com"]
[Date "2019.09.03"]
[Round "1"]
[White "Walter_White_Poland"]
[Black "temus_galaktionov"]
[Result "1-0"]
[WhiteElo "2309"]
[BlackElo "2620"]
[TimeControl "180+2"]
[EndTime "15:06:06 PDT"]
[Termination "Walter_White_Poland won by resignation"]

1. Nf3 {[%clk 0:02:55.6]} 1... c6 {[%clk 0:03:01.9]} 2. Nc3 {[%clk 0:02:42.2]}
2... g6 {[%clk 0:03:03.8]} 3. h3 {[%clk 0:02:30]} 3... Bg7 {[%clk 0:03:05.7]} 4.
d4 {[%clk 0:02:28.7]} 4... d6 {[%clk 0:03:06.7]} 5. e4 {[%clk 0:02:29.4]} 5...
Nd7 {[%clk 0:03:07.3]} 6. Be3 {[%clk 0:02:28.8]} 6... e5 {[%clk 0:03:08.2]} 7.
a4 {[%clk 0:02:17.8]} 7... Ngf6 {[%clk 0:03:08.5]} 8. dxe5 {[%clk 0:02:06]} 8...
dxe5 {[%clk 0:03:10.4]} 9. Qd6 {[%clk 0:02:04.3]} 9... Qe7 {[%clk 0:03:10.7]}
10. Qxe7+ {[%clk 0:02:04.9]} 10... Kxe7 {[%clk 0:03:12.6]} 11. O-O-O {[%clk
0:01:58.5]} 11... h5 {[%clk 0:03:12]} 12. Bc4 {[%clk 0:01:51.5]} 12... Bh6
{[%clk 0:03:12.4]} 13. Bxh6 {[%clk 0:01:48]} 13... Rxh6 {[%clk 0:03:13.1]} 14.
Ng5 {[%clk 0:01:46.4]} 14... Nb6 {[%clk 0:03:12.5]} 15. Bxf7 {[%clk 0:01:33.4]}
15... Bd7 {[%clk 0:03:05.9]} 16. a5 {[%clk 0:01:22.2]} 16... Nc8 {[%clk
0:03:05.5]} 17. Bb3 {[%clk 0:01:19.3]} 17... Nd6 {[%clk 0:03:05.3]} 18. Rxd6
{[%clk 0:01:17.4]} 18... Kxd6 {[%clk 0:03:03.9]} 19. Nf7+ {[%clk 0:01:18.5]}
19... Ke7 {[%clk 0:03:05]} 20. Nxh6 {[%clk 0:01:19.6]} 20... Be6 {[%clk
0:03:05.5]} 21. Bxe6 {[%clk 0:01:15.2]} 21... Kxe6 {[%clk 0:03:07.4]} 22. g4
{[%clk 0:01:16.3]} 22... Rh8 {[%clk 0:03:07]} 23. g5 {[%clk 0:01:14.2]} 23...
Nd7 {[%clk 0:03:05.1]} 24. Rf1 {[%clk 0:00:37.8]} 24... Rf8 {[%clk 0:03:05.1]}
25. f4 {[%clk 0:00:38.6]} 25... exf4 {[%clk 0:03:04.9]} 26. Ne2 {[%clk
0:00:39.5]} 26... Ke5 {[%clk 0:03:05.1]} 27. Ng1 {[%clk 0:00:26.3]} 27... Nc5
{[%clk 0:02:59.7]} 28. b4 {[%clk 0:00:20.5]} 28... Nxe4 {[%clk 0:02:59.2]} 29.
Nf3+ {[%clk 0:00:21.7]} 29... Kd6 {[%clk 0:02:59.3]} 30. Rd1+ {[%clk 0:00:20.4]}
30... Kc7 {[%clk 0:03:00]} 31. Re1 {[%clk 0:00:18.7]} 31... Nc3 {[%clk
0:02:31.6]} 32. Re7+ {[%clk 0:00:18.6]} 32... Kc8 {[%clk 0:02:32.5]} 33. Nf7
{[%clk 0:00:17.2]} 33... Na2+ {[%clk 0:02:33.3]} 34. Kb2 {[%clk 0:00:16.3]}
34... Nxb4 {[%clk 0:02:35.2]} 35. Nd6+ {[%clk 0:00:17.3]} 35... Kd8 {[%clk
0:02:35.1]} 36. Rxb7 {[%clk 0:00:18]} 36... Na6 {[%clk 0:02:33.4]} 37. Ne5
{[%clk 0:00:17.7]} 1-0

[Event "*** Titled Tuesday Blitz"]
[Site "Chess.com"]
[Date "2019.09.03"]
[Round "1"]
[White "ulises2013"]
[Black "albano87"]
[Result "0-1"]
[WhiteElo "2508"]
[BlackElo "2039"]
[TimeControl "180+2"]
[EndTime "15:06:06 PDT"]
[Termination "albano87 won by resignation"]

1. d4 {[%clk 0:03:00]} 1... Nf6 {[%clk 0:03:00.1]} 2. c4 {[%clk 0:03:00.6]} 2...
e6 {[%clk 0:03:01.6]} 3. Nf3 {[%clk 0:03:00.9]} 3... b6 {[%clk 0:03:00.2]} 4. g3
{[%clk 0:03:00.8]} 4... Bb7 {[%clk 0:02:59.6]} 5. Bg2 {[%clk 0:03:01.7]} 5...
Be7 {[%clk 0:02:57.2]} 6. O-O {[%clk 0:03:00.7]} 6... O-O {[%clk 0:02:58.5]} 7.
b3 {[%clk 0:03:01.3]} 7... d5 {[%clk 0:02:58.7]} 8. cxd5 {[%clk 0:02:56.3]} 8...
Nxd5 {[%clk 0:02:59.1]} 9. Bb2 {[%clk 0:02:52.7]} 9... Nd7 {[%clk 0:02:59.2]}
10. Nbd2 {[%clk 0:02:38.5]} 10... c5 {[%clk 0:03:00]} 11. Nc4 {[%clk 0:02:29.7]}
11... cxd4 {[%clk 0:02:57.4]} 12. Nxd4 {[%clk 0:02:26.1]} 12... Nc5 {[%clk
0:02:52.9]} 13. Qd2 {[%clk 0:02:23.1]} 13... Rc8 {[%clk 0:02:48.5]} 14. Rac1
{[%clk 0:02:22.9]} 14... Nf6 {[%clk 0:02:45]} 15. Bf3 {[%clk 0:02:22.5]} 15...
Bxf3 {[%clk 0:02:45]} 16. exf3 {[%clk 0:02:13.6]} 16... Qc7 {[%clk 0:02:39.3]}
17. Nb5 {[%clk 0:02:07.1]} 17... Qb8 {[%clk 0:02:32.6]} 18. Be5 {[%clk
0:01:59.8]} 18... Qa8 {[%clk 0:02:31.5]} 19. Qe2 {[%clk 0:01:56.5]} 19... Rfd8
{[%clk 0:02:28.4]} 20. Ncd6 {[%clk 0:01:50.6]} 20... Rc6 {[%clk 0:02:27.7]} 21.
Rfd1 {[%clk 0:01:45.1]} 21... a6 {[%clk 0:02:26.8]} 22. Nd4 {[%clk 0:01:26.9]}
22... Rcxd6 {[%clk 0:02:24.9]} 23. Bxd6 {[%clk 0:01:28.2]} 23... Rxd6 {[%clk
0:02:24.8]} 24. b4 {[%clk 0:01:21.3]} 24... Ncd7 {[%clk 0:02:22.5]} 25. a3
{[%clk 0:01:19]} 25... h6 {[%clk 0:02:22.9]} 26. Kg2 {[%clk 0:01:20]} 26... Nd5
{[%clk 0:02:20.3]} 27. Nf5 {[%clk 0:01:14.9]} 27... exf5 {[%clk 0:02:18.6]} 28.
Rxd5 {[%clk 0:01:09.1]} 28... Rxd5 {[%clk 0:02:19.5]} 29. Qxe7 {[%clk
0:01:09.8]} 29... Nf6 {[%clk 0:02:17.8]} 30. Rc7 {[%clk 0:01:09.5]} 30... Qe8
{[%clk 0:02:18.2]} 31. Qxe8+ {[%clk 0:01:06.4]} 31... Nxe8 {[%clk 0:02:17]} 32.
Rc8 {[%clk 0:01:07.6]} 32... Kf8 {[%clk 0:02:18.3]} 33. f4 {[%clk 0:01:06.6]}
33... Rd3 {[%clk 0:02:19.4]} 34. Rc6 {[%clk 0:01:02.9]} 34... Rxa3 {[%clk
0:02:16.7]} 35. Rxb6 {[%clk 0:01:04.3]} 35... g6 {[%clk 0:02:16.5]} 36. h4
{[%clk 0:01:04.7]} 36... h5 {[%clk 0:02:17.1]} 37. Kg1 {[%clk 0:01:04.3]} 37...
Nc7 {[%clk 0:02:18.3]} 38. Kg2 {[%clk 0:01:01.1]} 38... Nd5 {[%clk 0:02:19.7]}
39. Rb8+ {[%clk 0:01:02.2]} 39... Kg7 {[%clk 0:02:20.1]} 40. b5 {[%clk
0:01:03.6]} 40... Rb3 {[%clk 0:02:20.6]} 41. Rd8 {[%clk 0:01:03.5]} 41... Rxb5
{[%clk 0:02:21.7]} 42. Ra8 {[%clk 0:01:04.7]} 42... a5 {[%clk 0:02:22.5]} 43.
Rb8 {[%clk 0:01:05.4]} 43... Rxb8 {[%clk 0:02:23]} 0-1

[Event "*** Titled Tuesday Blitz"]
[Site "Chess.com"]
[Date "2019.09.03"]
[Round "1"]
[White "tteshan"]
[Black "Vuks91"]
[Result "0-1"]
[WhiteElo "2186"]
[BlackElo "2574"]
[TimeControl "180+2"]
[EndTime "15:06:13 PDT"]
[Termination "Vuks91 won by resignation"]

1. d4 {[%clk 0:03:01.6]} 1... Nf6 {[%clk 0:02:57.5]} 2. c4 {[%clk 0:03:02.9]}
2... g6 {[%clk 0:02:58.2]} 3. Nc3 {[%clk 0:03:02.9]} 3... Bg7 {[%clk 0:02:59.4]}
4. e4 {[%clk 0:03:04.3]} 4... O-O {[%clk 0:02:59.8]} 5. f4 {[%clk 0:03:05.8]}
5... d6 {[%clk 0:02:59.1]} 6. Nf3 {[%clk 0:03:07.2]} 6... Na6 {[%clk 0:03:00.1]}
7. Bd3 {[%clk 0:03:04.6]} 7... e5 {[%clk 0:03:00.5]} 8. fxe5 {[%clk 0:03:04.3]}
8... dxe5 {[%clk 0:03:01.5]} 9. d5 {[%clk 0:03:05.9]} 9... Ne8 {[%clk
0:03:00.7]} 10. O-O {[%clk 0:02:56.9]} 10... c5 {[%clk 0:03:01.6]} 11. dxc6
{[%clk 0:02:44.5]} 11... bxc6 {[%clk 0:03:01.9]} 12. Be3 {[%clk 0:02:45.4]}
12... Nec7 {[%clk 0:03:00.3]} 13. Bc2 {[%clk 0:02:31.3]} 13... Qe7 {[%clk
0:02:57.2]} 14. a3 {[%clk 0:02:29.5]} 14... Ne6 {[%clk 0:02:54.1]} 15. Qe1
{[%clk 0:02:08.2]} 15... Nd4 {[%clk 0:02:51.9]} 16. Ba4 {[%clk 0:02:04.7]} 16...
Nc5 {[%clk 0:02:32.4]} 17. Bd1 {[%clk 0:01:32.5]} 17... Ba6 {[%clk 0:02:22.3]}
18. Nd2 {[%clk 0:01:18.3]} 18... Nd3 {[%clk 0:02:15.2]} 19. Qg3 {[%clk 0:01:19]}
19... Nxb2 {[%clk 0:02:15.2]} 20. Ba4 {[%clk 0:01:00]} 20... Nxc4 {[%clk
0:02:12.4]} 21. Nxc4 {[%clk 0:00:53.2]} 21... Bxc4 {[%clk 0:02:14.3]} 22. Rf2
{[%clk 0:00:54.2]} 22... Rab8 {[%clk 0:01:59.7]} 23. h4 {[%clk 0:00:45.1]} 23...
Bb3 {[%clk 0:01:54]} 24. h5 {[%clk 0:00:34.9]} 24... Bxa4 {[%clk 0:01:51.9]} 25.
Nxa4 {[%clk 0:00:35.8]} 25... Rb3 {[%clk 0:01:53]} 26. Raf1 {[%clk 0:00:28.5]}
26... Qxa3 {[%clk 0:01:49.9]} 27. hxg6 {[%clk 0:00:28.7]} 27... hxg6 {[%clk
0:01:49]} 28. Qh4 {[%clk 0:00:18.3]} 28... Rxe3 {[%clk 0:01:46.2]} 0-1